bitfinex-derivatives/quotes_ETHF0:USTF0_20250103
["timestamp","ask_amount","ask_price","bid_price","bid_amount"]
[1735908575865,0.28849,3468.9,3468.8,11.50617485]
[1735908576463,0.28849,3468.9,3468.8,11.21767485]
[1735908576666,0.28849,3468.9,3468.8,11.50617485]
[1735908577370,0.28849,3468.9,3468.8,11.21767485]
[1735908578774,0.28849,3468.9,3468.8,4.42879096]
[1735908579674,0.28849,3468.9,3468.8,4.71729096]
[1735908579862,0.28849,3468.9,3468.8,4.42879096]
[1735908580373,43.35751307,3468.9,3468.8,4.52825726]
[1735908584170,2.55751307,3468.9,3468.8,4.52825726]
[1735908585878,2.55751307,3468.9,3468.8,4.81675726]
[1735908586379,0.28849,3468.9,3468.8,4.81675726]
[1735908588074,0.28849,3468.9,3468.8,11.50739879]
[1735908588683,0.28849,3468.9,3468.8,11.21889879]
[1735908588977,2.55866116,3468.9,3468.8,11.21889879]
[1735908590380,2.55866116,3468.9,3468.8,11.50739879]
[1735908590583,0.28849,3468.9,3468.8,11.50739879]
[1735908592875,0.28849,3468.9,3468.8,11.21889879]
[1735908598287,1.28707145,3468.9,3468.8,11.21889879]
[1735908599882,1.28707145,3468.9,3468.8,4.4300149]
[1735908602086,1.28707145,3468.9,3468.8,4.7185149]
[1735908602289,1.28707145,3468.9,3468.8,4.4300149]
[1735908603084,1.28707145,3468.9,3468.8,11.22309187]
[1735908603285,1.28707145,3468.9,3468.8,11.51159187]
[1735908603991,1.28707145,3468.9,3468.8,11.22309187]
[1735908605081,1.28707145,3468.9,3468.8,11.51159187]
[1735908605483,1.28707145,3468.9,3468.8,11.22309187]
[1735908609695,4.69118217,3468.9,3468.8,11.22309187]
[1735908612390,4.69118217,3468.9,3468.8,4.4300149]
[1735908612895,4.69118217,3468.9,3468.8,4.7185149]
[1735908613292,3.69260072,3468.9,3468.8,4.7185149]
[1735908613698,3.40411072,3468.9,3468.8,7.9263149]
[1735908613898,3.40411072,3468.9,3468.8,8.92489635]
[1735908614792,3.40411072,3468.9,3468.8,14.9234778]
[1735908616198,2.27111403,3469.4,3469.3,0.28845]
[1735908616400,2.27111403,3469.4,3469.3,4.49483145]
[1735908617293,2.27111403,3469.5,3469.4,0.28845]
[1735908617604,2.27111403,3469.5,3469.4,1.28703145]
[1735908618601,2.27111403,3469.6,3469.5,0.28844]
[1735908619701,2.27111403,3469.6,3469.5,4.80850845]
[1735908621000,2.27111403,3469.6,3469.5,0.28844]
[1735908622497,2.55954403,3469.6,3469.5,0.28844]
[1735908623403,0.28843,3469.6,3469.5,0.28844]
[1735908624305,0.28844,3469.5,3469.4,4.80850845]
[1735908624699,41.08844,3469.5,3469.4,0.28844]
[1735908625300,0.28844,3469.5,3469.4,0.28844]
[1735908626199,0.28845,3469.4,3469.3,3.49625]
[1735908626403,0.28845,3469.3,3469.2,4.52006845]
[1735908626812,0.28845,3469.3,3469.2,4.80852845]
[1735908627107,0.28845,3469.3,3469.2,8.01632845]
[1735908627502,0.28845,3469.3,3469.2,9.0149099]
[1735908627908,0.28845,3469.3,3469.2,5.5186499]
[1735908628608,0.28845,3469.3,3469.2,0.99858145]
[1735908629311,0.28845,3469.3,3469.2,1.28704145]
[1735908631312,0.28845,3469.3,3469.2,5.8071099]
[1735908632204,2.27111403,3469.5,3469.2,5.5186499]
[1735908632506,0.28845,3469.4,3469.3,0.28845]
[1735908633610,2.27111403,3469.5,3469.3,0.99858145]
[1735908633812,2.55955403,3469.5,3469.4,0.28845]
[1735908634011,0.28844,3469.5,3469.4,0.28845]
[1735908634811,2.27111403,3469.6,3469.5,0.28844]
[1735908635002,2.55954403,3469.6,3469.5,0.28844]
[1735908637307,2.55954403,3469.6,3469.5,1.28702145]
[1735908638815,2.27111403,3469.6,3469.5,1.28702145]
[1735908639306,2.55954403,3469.6,3469.5,1.28702145]
[1735908642812,2.27111403,3469.6,3469.5,1.28702145]
[1735908644307,2.55953403,3469.7,3469.6,0.28843]
[1735908646914,0.28842,3469.7,3469.6,0.28843]
[1735908650311,0.28842,3469.7,3469.6,3.49623]
[1735908653813,0.20411327,3470.1,3469.6,3.2078]
[1735908654009,0.28841,3469.9,3469.8,0.2884]
[1735908654411,3.2078,3470.9,3469.6,3.2078]
[1735908654719,0.28838,3470.3,3470.2,3.49617]
[1735908657219,0.28838,3470.3,3470.2,4.49475145]
[1735908657818,0.99858145,3470.7,3470.2,4.20638145]
[1735908658115,0.28837,3470.4,3470.3,0.28836]
[1735908658918,0.28837,3470.3,3470.2,0.28837]
[1735908659323,0.28837,3470.3,3470.2,1.28695145]
[1735908661019,0.99858145,3470.5,3470.2,0.99858145]
[1735908661219,0.28837,3470.4,3470.3,0.28836]
[1735908661420,0.28837,3470.4,3470.3,1.28694145]
[1735908661830,0.72079,3471.1,3470.3,0.99858145]
[1735908662034,0.28834,3470.8,3470.7,0.28833]
[1735908663235,0.28834,3470.8,3470.7,1.28691145]
[1735908663533,5.96374948,3470.9,3470.8,0.28832]
[1735908663731,5.67542948,3470.9,3470.8,0.28832]
[1735908664229,5.96374948,3470.9,3470.8,0.28832]
[1735908664633,40.8,3471.2,3470.7,8.71823419]
[1735908664827,40.8,3471.2,3471.0,1.28688145]
[1735908664828,0.2883,3471.1,3471.0,1.28688145]
[1735908670531,40.8,3471.2,3471.1,0.2883]
[1735908670736,3.92845,3471.7,3471.0,0.99858145]
[1735908671035,0.28829,3471.4,3471.3,0.99858145]
[1735908674338,0.28829,3471.3,3471.1,0.99858145]
[1735908674538,0.28829,3471.3,3471.2,0.2883]
[1735908678145,0.2883,3471.2,3471.1,1.28688145]
[1735908686657,0.2883,3471.2,3471.1,4.49468145]
[1735908689355,0.99858145,3471.5,3471.1,4.20638145]
[1735908689657,0.2883,3471.4,3471.3,1.28686145]
[1735908693755,0.2883,3471.4,3471.3,5.79871419]
[1735908701264,2.26437396,3471.5,3471.4,0.28828]
[1735908702070,2.26437396,3471.6,3471.5,0.28827]
[1735908702268,2.26437396,3471.6,3471.5,1.28685145]
[1735908703071,2.26437396,3471.6,3471.5,4.49465145]
[1735908703367,2.55263396,3471.6,3471.5,4.49465145]
[1735908703570,0.28826,3471.6,3471.5,9.01265599]
[1735908704767,0.28826,3471.6,3471.5,4.51800454]
[1735908705071,3.49606,3471.6,3471.5,4.51800454]
[1735908705266,8.49606,3471.6,3471.5,4.51800454]
[1735908707072,0.28831,3471.0,3470.9,0.28832]
[1735908707269,0.72072,3471.4,3470.7,7.72580454]
[1735908707563,6.32150672,3471.6,3471.2,0.99858145]
[1735908707770,0.28829,3471.3,3471.2,0.99858145]
[1735908708376,2.55538903,3471.3,3471.2,5.51658599]
[1735908709478,2.55538903,3471.3,3471.2,4.51800454]
[1735908710973,3.68893855,3471.3,3471.2,4.51800454]
[1735908714478,9.68752,3471.3,3471.2,0.98755454]
[1735908714774,0.2883,3471.2,3471.1,4.30979366]
[1735908714970,9.49468145,3471.2,3471.1,3.67552366]
[1735908715166,50.29468145,3471.2,3471.1,3.05574366]
[1735908715373,50.29468145,3471.2,3471.1,2.47043366]
[1735908715780,50.00638145,3471.2,3470.0,0.99858145]
[1735908716078,0.28838,3470.2,3470.1,0.28839]
[1735908716381,0.28839,3470.1,3470.0,1.28697145]
[1735908718081,0.2884,3470.0,3469.9,9.33798917]
[1735908718376,0.2884,3470.0,3469.9,10.33657062]
[1735908718777,0.2884,3470.0,3469.9,1.28698145]
[1735908719982,0.2884,3470.0,3469.9,0.99858145]
[1735908721075,0.2884,3470.0,3469.9,1.28698145]
[1735908723381,0.2884,3470.0,3469.8,3.2078]
[1735908723382,0.72093,3470.3,3469.8,3.2078]
[1735908723583,0.2884,3469.9,3469.8,4.20638145]
[1735908723779,0.2884,3469.9,3469.8,3.2078]
[1735908724179,0.28843,3469.6,3469.5,9.04958917]
[1735908724578,0.28844,3469.5,3469.4,9.04958917]
[1735908724882,0.28843,3469.7,3469.6,0.28842]
[1735908725076,0.99858145,3469.8,3469.4,10.04817062]
[1735908725276,0.28844,3469.5,3469.4,10.04817062]
[1735908725679,0.28844,3469.5,3469.4,10.33662062]
[1735908726177,0.28844,3469.5,3469.4,0.99858145]
[1735908726384,0.28845,3469.3,3469.2,3.49626]
[1735908727384,0.28845,3469.5,3469.4,0.28844]
[1735908727976,0.28843,3469.7,3469.6,0.28842]
[1735908728879,43.06657114,3470.3,3469.3,2.27061301]
[1735908728880,0.72096,3470.2,3469.3,2.27061301]
[1735908729080,0.28844,3469.6,3469.5,0.28843]
[1735908729580,0.28845,3469.5,3469.4,0.28843]
[1735908729985,0.72102,3469.9,3469.3,2.27061301]
[1735908730182,0.72102,3469.9,3469.6,0.28842]
[1735908730183,0.28843,3469.7,3469.6,0.28842]
[1735908730484,40.8,3470.3,3469.3,2.27061301]
[1735908730677,0.28845,3469.5,3469.4,0.28843]
[1735908732586,0.28845,3469.4,3469.3,0.28844]
[1735908734178,0.28844,3469.6,3469.5,0.28842]
[1735908735976,0.28844,3469.6,3469.2,3.2078]
[1735908736181,0.28845,3469.4,3469.3,0.28844]
[1735908736689,0.28844,3469.6,3469.5,0.28843]
[1735908737083,0.28845,3469.4,3469.3,0.28844]
[1735908738285,0.28844,3469.6,3469.5,0.28843]
[1735908739088,0.72102,3469.9,3469.2,3.2078]
[1735908739394,0.28845,3469.5,3469.4,0.28844]
[1735908741786,0.28845,3469.4,3469.3,0.28845]
[1735908742588,0.28845,3469.3,3469.2,3.49626]
[1735908742789,0.28849,3469.0,3468.8,3.2078]
[1735908742990,0.28849,3469.0,3468.9,0.28848]
[1735908743493,41.08849,3469.0,3468.9,0.28848]
[1735908743688,0.28849,3469.0,3468.9,0.28848]
[1735908744094,41.08849,3469.0,3468.9,0.28848]
[1735908745887,40.8,3469.0,3468.8,3.2078]
[1735908746185,0.28849,3468.9,3468.8,3.2078]
[1735908746588,0.28849,3468.9,3468.8,3.4963]
[1735908749390,0.28849,3469.0,3468.9,0.28848]
[1735908752803,0.28849,3468.9,3468.8,3.2078]
[1735908753005,0.28849,3468.9,3468.8,3.4963]
[1735908753810,0.28849,3468.9,3468.8,3.2078]
[1735908755401,3.2078,3469.2,3468.5,1.98908145]
[1735908755601,0.28851,3468.6,3468.5,2.27759145]
[1735908756207,0.72118,3469.1,3468.5,1.98908145]
[1735908756412,0.28851,3468.7,3468.6,0.2885]
[1735908756605,3.2078,3469.2,3468.5,1.98908145]
[1735908756805,0.2885,3468.9,3468.8,0.28848]
[1735908759907,0.28851,3468.8,3468.7,0.2885]
[1735908761012,0.28851,3468.6,3468.5,2.27760145]
[1735908763715,0.28851,3468.6,3468.5,0.28852]
[1735908763912,0.7212,3469.1,3468.4,2.27061301]
[1735908764214,0.7212,3469.1,3468.5,0.7213]
[1735908764409,0.28851,3468.8,3468.7,0.28849]
[1735908770012,0.28853,3468.5,3468.4,0.28851]
[1735908770218,0.28852,3468.7,3468.6,0.2885]
[1735908774218,1.28708918,3468.7,3468.6,0.2885]
[1735908776221,2.26657114,3469.0,3468.5,0.99856918]
[1735908776418,0.2885,3468.9,3468.8,0.28849]
[1735908778221,1.28706918,3468.9,3468.8,0.28849]
[1735908783327,3.55364032,3468.9,3468.8,0.28849]
[1735908783718,3.26514032,3468.9,3468.5,6.79479495]
[1735908783921,1.28707918,3468.7,3468.6,0.2885]
[1735908784325,42.08707918,3468.7,3468.6,0.2885]
[1735908785624,1.28707918,3468.7,3468.6,0.2885]
[1735908786027,42.08707918,3468.7,3468.6,0.2885]
[1735908786229,42.08707918,3468.7,3468.6,11.32889905]
[1735908786727,1.28707918,3468.7,3468.6,11.32889905]
[1735908787329,3.55365032,3468.7,3468.6,11.32889905]
[1735908789127,3.55365032,3468.7,3468.6,11.04039905]
[1735908789731,49.35365032,3468.7,3468.6,11.04039905]
[1735908790122,46.79856918,3468.7,3468.0,6.79479495]
[1735908790328,0.28856,3468.0,3467.9,3.2078]
[1735908790929,41.08856,3468.0,3467.9,3.2078]
[1735908793329,0.28856,3468.0,3467.9,3.2078]
[1735908794037,0.72159664,3468.0,3467.9,7.4601677]
[1735908795237,2.55541674,3468.0,3467.9,3.2078]
[1735908795434,2.55541674,3468.0,3467.9,3.49637]
[1735908795640,2.55541674,3468.0,3467.9,3.2078]
[1735908796638,0.28856,3468.0,3467.9,3.2078]
[1735908797941,0.28858,3467.8,3467.7,0.28858]
[1735908799136,0.28858,3467.9,3467.8,0.28857]
[1735908801440,5.26113325,3468.2,3467.6,3.2078]
[1735908801641,0.28859,3467.8,3467.7,0.28858]
[1735908804148,2.26685674,3468.1,3467.6,3.2078]
[1735908804345,0.28859,3467.7,3467.6,3.49639]
[1735908808046,0.28859,3467.7,3467.6,0.28859]
[1735908811348,2.99427651,3468.2,3467.8,0.28857]
[1735908811349,0.28859,3467.9,3467.8,0.28857]
[1735908814752,2.98824674,3468.1,3467.8,0.9989696]
[1735908814753,2.26685674,3468.1,3467.8,0.9989696]
[1735908815053,0.28857,3468.0,3467.9,0.28856]
[1735908815448,2.26685674,3468.1,3467.8,0.9989696]
[1735908815647,0.28857,3467.9,3467.8,1.2875496]
[1735908816147,0.28857,3467.9,3467.8,0.9989696]
[1735908816455,0.28858,3467.8,3467.7,0.28858]
[1735908817650,0.9989696,3467.9,3467.5,10.02240675]
[1735908817954,0.2886,3467.6,3467.5,10.02240675]
[1735908818943,0.2886,3467.6,3467.5,3.2078]
[1735908819350,0.2886,3467.6,3467.5,3.4964]
[1735908820853,0.2886,3467.6,3467.3,6.81460675]
[1735908820854,0.28861,3467.4,3467.3,6.81460675]
[1735908821060,1.2875796,3467.4,3467.3,6.81460675]
[1735908821251,0.28861,3467.4,3467.3,8.10219635]
[1735908821651,0.9989696,3467.8,3467.3,7.81357635]
[1735908821852,0.28861,3467.5,3467.4,3.4964]
[1735908822552,3.26582634,3467.8,3467.6,0.28859]
[1735908822553,0.2886,3467.7,3467.6,0.28859]
[1735908823157,2.26685674,3467.8,3467.5,0.9989696]
[1735908823456,0.28858,3467.8,3467.7,1.2875596]
[1735908825153,0.28857,3468.0,3467.9,0.28856]
[1735908827064,0.9989696,3468.1,3467.8,3.2078]
[1735908827264,1.2875296,3468.1,3468.0,0.28856]
[1735908831666,0.28857,3468.0,3467.9,0.28857]
[1735908831967,0.28857,3467.9,3467.8,3.49637]
[1735908832170,0.28857,3467.9,3467.8,10.31097675]
[1735908833472,0.28857,3467.9,3467.8,7.74345243]
[1735908834865,2.55542674,3467.9,3467.8,14.55805918]
[1735908836469,2.55542674,3467.9,3467.8,7.74345243]
[1735908836470,0.28857,3467.9,3467.8,7.74345243]
[1735908838672,0.28857,3467.9,3467.8,7.45488243]
[1735908841373,0.28857,3467.9,3467.8,7.74346243]
[1735908842581,3.40028512,3468.0,3467.9,0.28857]
[1735908842767,3.40028512,3468.0,3467.9,1.2875396]
[1735908843164,3.40028512,3468.0,3467.9,2.2865092]
[1735908843365,3.40028512,3468.0,3467.9,1.2875396]
[1735908843878,2.27064801,3468.2,3468.1,0.28855]
[1735908844064,2.27064801,3468.2,3468.1,1.2875196]
[1735908845372,2.27064801,3468.6,3468.5,0.28852]
[1735908845772,2.27064801,3468.6,3468.5,1.2874896]
[1735908846474,2.27064801,3468.6,3468.5,0.28852]
[1735908846683,2.55915801,3468.7,3468.6,0.28851]
[1735908847676,2.55915801,3468.7,3468.6,4.82473793]
[1735908848783,0.28851,3468.7,3468.6,4.82473793]
[1735908848984,3.55811761,3468.8,3468.7,0.2885]
[1735908850787,3.26961761,3468.8,3468.7,0.2885]
[1735908850987,3.55811761,3468.8,3468.7,0.2885]
[1735908851285,0.9989696,3468.8,3468.7,0.2885]
[1735908851878,1.2874696,3468.8,3468.7,0.2885]
[1735908852885,0.9989696,3468.8,3468.7,0.2885]
[1735908854789,3.55809761,3469.0,3468.6,4.53622793]
[1735908854987,3.55809761,3469.0,3468.9,0.28849]
[1735908855485,1.2874496,3469.0,3468.9,0.28849]
[1735908860983,2.27064801,3469.1,3468.7,4.2067696]
[1735908861188,2.27064801,3469.1,3469.0,0.28848]
[1735908862094,41.08846,3469.3,3469.2,0.28846]
[1735908862391,0.28845,3469.4,3469.3,0.28845]
[1735908862580,0.28845,3469.4,3469.3,1.2874196]
[1735908864593,0.28845,3469.4,3469.3,0.28845]
[1735908865489,44.06961761,3469.7,3469.3,0.9989696]
[1735908865693,0.28844,3469.6,3469.5,1.2873996]
[1735908866392,0.28842,3469.8,3469.7,0.28841]
[1735908866588,2.27064801,3469.9,3469.7,0.9989696]
[1735908866788,43.35905801,3469.9,3469.8,0.28841]
[1735908867098,0.2884,3469.9,3469.8,0.28841]
[1735908867292,2.27064801,3470.0,3469.9,0.2884]
[1735908867491,2.27064801,3470.0,3469.9,4.4951696]
[1735908868390,2.27064801,3470.0,3469.9,3.4962]
[1735908868900,40.8,3470.6,3469.9,3.4962]
[1735908869196,0.28837,3470.4,3470.3,0.28836]
[1735908872198,41.08835,3470.6,3470.5,0.28835]
[1735908872695,40.8,3470.6,3470.1,0.72096]
[1735908872895,41.08835,3470.6,3470.5,0.28835]
[1735908873499,0.28837,3470.5,3470.4,0.28836]
[1735908876599,40.8,3470.6,3470.5,0.28835]
[1735908876600,41.08835,3470.6,3470.5,0.28835]
[1735908877395,0.28834,3470.7,3470.6,0.28835]
[1735908880506,0.28836,3470.6,3470.5,0.28835]
[1735908889914,3.92857,3471.1,3470.2,3.92874]
[1735908890213,0.28834,3470.8,3470.7,0.28833]
[1735908895726,41.08833,3470.9,3470.8,0.28833]
[1735908896227,41.08833,3470.9,3470.8,1.28568136]
[1735908897922,0.28833,3470.9,3470.8,1.28568136]
[1735908898428,41.08833,3470.9,3470.8,1.28568136]
[1735908900123,0.28833,3470.9,3470.8,1.28568136]
[1735908900331,0.28832,3471.0,3470.9,0.2883]
[1735908900628,41.08832,3471.0,3470.9,1.28565136]
[1735908902029,41.08832,3471.0,3470.9,0.99735136]
[1735908902226,0.28834,3470.7,3470.6,3.2078]
[1735908902432,0.28837,3470.3,3470.2,3.2078]
[1735908902923,0.28837,3470.3,3470.2,3.49618]
[1735908904524,0.28837,3470.3,3470.2,3.2078]
[1735908904728,1.28572136,3470.3,3470.2,3.2078]
[1735908906226,0.2884,3469.9,3469.8,4.20515136]
[1735908907627,0.2884,3469.9,3469.8,3.2078]
[1735908907827,0.2884,3470.0,3469.8,4.20515136]
[1735908908128,0.2884,3470.0,3469.9,0.99735136]
[1735908909232,0.2884,3470.0,3469.9,1.28574136]
[1735908909829,0.2884,3470.0,3469.9,0.99735136]
[1735908910136,0.2884,3470.0,3469.9,4.51963693]
[1735908912438,2.55904801,3470.0,3469.9,4.51963693]
[1735908915432,3.55639937,3470.0,3469.9,4.51963693]
[1735908915739,8.55639937,3470.0,3469.9,2.82702693]
[1735908916035,8.55639937,3470.0,3469.5,9.07431488]
[1735908916036,0.28845,3469.4,3469.3,6.80573616]
[1735908916237,3.49625,3469.4,3469.3,6.80573616]
[1735908916433,4.49360136,3469.4,3469.3,6.80573616]
[1735908916626,45.29360136,3469.4,3469.3,6.80573616]
[1735908917834,0.2885,3468.8,3468.7,1.28585136]
[1735908918339,0.2885,3468.8,3468.7,0.2885]
[1735908918638,0.28849,3469.0,3468.9,0.28848]
[1735908918936,0.28846,3469.3,3469.2,0.28845]
[1735908919240,0.28847,3469.2,3469.1,0.28846]
[1735908919440,2.55062754,3469.2,3469.1,0.28846]
[1735908919835,2.26215754,3469.2,3468.7,0.72127]
[1735908920039,0.28848,3469.1,3469.0,0.28847]
[1735908922948,0.28849,3469.0,3468.9,0.28848]
[1735908923341,2.27154451,3469.3,3468.6,3.2078]
[1735908923644,0.28851,3468.7,3468.6,0.28851]
[1735908923835,0.28853,3468.5,3468.4,0.28852]
[1735908924139,0.28852,3468.6,3468.2,11.13753616]
[1735908924340,2.27154451,3468.7,3468.2,6.80573616]
[1735908924548,0.28854,3468.3,3468.2,6.80573616]
[1735908924939,41.08854,3468.3,3468.2,6.80573616]
[1735908925139,3.92909,3468.6,3467.9,6.80573616]
[1735908925346,0.28856,3468.1,3468.0,0.28856]
[1735908925843,0.28856,3468.0,3467.9,7.09430616]
[1735908926046,0.28856,3468.0,3467.9,6.80573616]
[1735908926446,0.28856,3468.0,3467.9,7.09430616]
[1735908926939,43.79287451,3468.4,3468.0,0.28855]
[1735908926940,0.28856,3468.1,3468.0,0.28855]
[1735908927144,0.28856,3468.2,3468.1,0.28855]
[1735908927345,0.28857,3468.0,3467.9,0.28856]
[1735908927545,0.28856,3468.1,3468.0,0.28855]
[1735908927745,0.28857,3468.0,3467.9,0.28856]
[1735908927948,41.52134,3468.4,3467.8,3.2078]
[1735908928149,40.8,3468.4,3467.8,3.2078]
[1735908928545,2.26215754,3468.7,3467.8,5.47934451]
[1735908928743,0.28853,3468.4,3468.3,0.28853]
[1735908929145,0.28854,3468.3,3468.2,0.28854]
[1735908939959,2.27154451,3468.7,3468.0,3.2078]
[1735908940159,2.27154451,3468.7,3468.0,3.49636]
[1735908940160,0.28855,3468.1,3468.0,3.49636]
[1735908940660,0.28855,3468.1,3468.0,3.2078]
[1735908941060,0.28855,3468.1,3468.0,3.49636]
[1735908941959,0.28855,3468.1,3468.0,3.2078]
[1735908942356,0.28855,3468.1,3468.0,3.49636]
[1735908943865,0.28855,3468.1,3468.0,0.28856]
[1735908944365,0.28855,3468.3,3468.2,0.28853]
[1735908945856,0.72129,3468.6,3467.8,3.2078]
[1735908946060,0.28856,3468.1,3468.0,0.28855]
[1735908948059,0.28855,3468.3,3468.2,0.28853]
[1735908949464,0.28857,3467.9,3467.8,3.49637]
[1735908949760,0.28857,3467.9,3467.8,3.2078]
[1735908950366,0.2886,3467.6,3467.5,0.2886]
[1735908950872,0.72144,3467.9,3467.4,3.49641]
[1735908950873,0.2886,3467.5,3467.4,3.49641]
[1735908951767,0.28863,3467.3,3467.2,0.28862]
[1735908952360,0.28865,3467.1,3467.0,0.28864]
[1735908952760,0.28863,3467.2,3467.1,0.28862]
[1735908956864,0.28865,3467.0,3466.9,3.2078]
[1735908957064,0.7216,3467.1,3466.6,6.78138405]
[1735908957267,3.2078,3467.3,3466.3,9.04184541]
[1735908957268,2.27154451,3466.7,3466.3,9.33054541]
[1735908957567,0.28869,3466.4,3466.3,9.33054541]
[1735908957969,0.28869,3466.5,3466.4,0.28868]
[1735908959669,2.27154451,3466.7,3466.0,3.2078]
[1735908959874,0.28871,3466.3,3466.2,0.2887]
[1735908960570,0.28872,3466.1,3466.0,3.49652]
[1735908960769,0.28871,3466.4,3466.3,0.28869]
[1735908961468,0.28871,3466.3,3466.2,0.28871]
[1735908961871,0.28872,3466.2,3466.1,0.28871]
[1735908964371,2.27154451,3466.4,3465.6,9.99315964]
[1735908964565,0.28875,3465.8,3465.7,0.28875]
[1735908965479,0.28874,3465.9,3465.6,9.99315964]
[1735908965772,2.27154451,3466.3,3465.6,9.99315964]
[1735908965968,0.28873,3466.0,3465.9,0.28872]
[1735908966272,2.27154451,3466.3,3465.6,9.99315964]
[1735908966465,0.28874,3466.0,3465.9,0.28873]
[1735908966865,0.72176,3466.4,3465.6,9.99315964]
[1735908966866,0.28871,3466.4,3466.3,0.2887]
[1735908972674,0.28872,3466.2,3466.1,0.28871]
[1735908973978,0.28871,3466.3,3466.2,0.2887]
[1735908974180,2.99324451,3466.6,3466.0,3.2078]
[1735908974374,0.28872,3466.2,3466.1,0.28871]
[1735908975479,0.28871,3466.3,3466.2,0.2887]
[1735908976875,2.99326451,3466.6,3466.1,3.2078]
[1735908977080,0.28872,3466.2,3466.1,3.49651]
[1735908979081,0.28872,3466.2,3466.1,3.2078]
[1735908979378,0.28874,3465.8,3465.7,3.49655]
[1735908989587,0.28874,3466.0,3465.9,0.28872]
[1735908989783,0.28874,3465.9,3465.8,0.28873]
[1735908991582,0.28873,3466.2,3466.1,0.28871]
[1735908992286,0.28873,3466.2,3466.1,3.49651]
[1735908993283,0.28871,3466.3,3466.2,0.2887]
[1735908994083,2.99325451,3466.6,3466.1,3.2078]
[1735908994280,0.28871,3466.2,3466.1,3.49651]
[1735908996188,0.28871,3466.2,3466.1,3.2078]
[1735908996686,0.28874,3465.9,3465.8,0.28874]
[1735908998287,0.72179,3466.2,3465.7,3.2078]
[1735908998488,2.27154451,3466.0,3465.3,9.99315964]
[1735908998793,3.2078,3466.1,3465.3,10.28193964]
[1735908998794,0.28878,3465.4,3465.3,10.28193964]
[1735908998995,41.08878,3465.4,3465.3,10.28193964]
[1735908999685,41.08878,3465.4,3465.3,3.49658]
[1735908999686,0.28878,3465.4,3465.3,3.49658]
[1735908999890,2.25790371,3465.7,3465.3,3.2078]
[1735909000090,41.08877,3465.6,3465.5,0.28876]
[1735909000296,0.28878,3465.5,3465.4,0.28877]
[1735909002288,0.28878,3465.4,3465.3,3.2078]
[1735909002693,2.56032451,3465.4,3465.3,3.2078]
[1735909007399,2.56032451,3465.4,3465.3,3.49659]
[1735909007595,0.28878,3465.4,3465.3,3.49659]
[1735909010906,2.56032451,3465.4,3465.3,3.2078]
[1735909011107,0.28879,3465.2,3465.1,6.78535964]
[1735909011999,0.28879,3465.2,3464.9,9.33066541]
[1735909012000,0.2888,3465.1,3465.0,6.78535964]
[1735909012297,0.2888,3465.1,3465.0,7.07416964]
[1735909013398,0.2888,3465.1,3465.0,0.28881]
[1735909013704,0.28882,3465.0,3464.9,0.28881]
[1735909014205,2.25790371,3465.3,3464.8,3.2078]
[1735909014401,0.28881,3465.1,3465.0,0.2888]
[1735909017208,2.97987371,3465.3,3464.8,3.2078]
[1735909017415,0.28882,3465.0,3464.9,0.28881]
[1735909019805,2.25790371,3465.3,3464.8,3.2078]
[1735909020005,0.28881,3465.2,3465.1,0.28879]
[1735909021411,2.25790371,3465.3,3465.2,0.28879]
[1735909021412,2.54670371,3465.3,3465.2,0.28879]
[1735909021910,2.25790371,3465.4,3465.2,3.2078]
[1735909022211,2.25790371,3465.4,3465.3,0.28879]
[1735909023506,2.25790371,3465.9,3465.2,3.2078]
[1735909023713,2.25790371,3465.9,3465.8,3.49654]
[1735909024220,0.37190371,3465.9,3465.8,3.49654]
[1735909024813,41.0887,3466.4,3466.3,0.2887]
[1735909025523,40.8,3466.4,3466.2,3.2078]
[1735909025812,0.28871,3466.3,3466.2,3.4965]
[1735909026408,0.28871,3466.3,3466.2,3.2078]
[1735909026809,0.28871,3466.3,3466.2,3.49651]
[1735909027510,0.2887,3466.3,3466.2,3.49651]
[1735909027709,0.2887,3466.4,3466.3,0.2887]
[1735909027908,2.56023451,3466.5,3466.4,0.28869]
[1735909028105,43.07154451,3466.5,3465.9,0.72185]
[1735909028406,2.56023451,3466.5,3466.4,0.28869]
[1735909028814,0.2887,3466.4,3466.3,0.2887]
[1735909029013,2.27154451,3466.5,3465.9,6.78535964]
[1735909029216,2.56026451,3466.2,3466.1,0.28871]
[1735909029810,2.27154451,3466.5,3465.9,6.78535964]
[1735909030117,0.28871,3466.3,3466.2,0.2887]
[1735909030614,0.2887,3466.4,3466.3,0.2887]
[1735909031010,2.27154451,3466.5,3465.7,0.72188]
[1735909031211,0.28871,3466.2,3466.1,0.28872]
[1735909032211,0.28872,3466.1,3466.0,3.49652]
[1735909032912,0.28875,3465.9,3465.6,9.99315964]
[1735909033113,0.28875,3465.8,3465.7,0.28875]
[1735909033316,0.28874,3465.9,3465.8,0.28874]
[1735909033819,0.28875,3465.8,3465.7,0.28875]
[1735909034710,0.28877,3465.5,3465.4,7.07412964]
[1735909035920,0.28877,3465.5,3465.4,0.28877]
[1735909036415,0.28877,3465.6,3465.5,0.28876]
[1735909036613,0.28878,3465.5,3465.4,0.28877]
[1735909037016,0.28878,3465.4,3465.3,0.28878]
[1735909037408,0.28878,3465.4,3465.2,7.73893296]
[1735909037409,0.28878,3465.5,3465.4,0.28877]
[1735909040317,0.72188,3465.8,3465.2,7.73893296]
[1735909040522,2.56033451,3465.3,3465.2,7.73893296]
[1735909041117,43.07154451,3465.3,3465.0,4.53113296]
[1735909041323,0.2888,3465.1,3465.0,4.53113296]
[1735909042918,40.8,3465.2,3464.8,4.53113296]
[1735909042919,0.28882,3464.9,3464.8,4.53113296]
[1735909043722,0.28882,3464.9,3464.8,4.81996296]
[1735909045722,2.27154451,3465.3,3464.8,4.53113296]
[1735909045922,0.28882,3465.0,3464.9,0.28881]
[1735909047120,2.27154451,3465.3,3464.8,4.53113296]
[1735909047326,0.28882,3464.9,3464.8,4.81995296]
[1735909050023,0.28882,3464.9,3464.8,0.28882]
[1735909050923,0.28882,3464.9,3464.8,3.49662]
[1735909051227,0.28882,3464.9,3464.8,3.2078]
[1735909051527,0.28882,3464.9,3464.8,3.49663]